fUSD/lending_fUSD_20240921
["ID","MTS","AMOUNT","RATE_DAILY","PERIOD"]
[338724708,1726899044388,-500.0,0.00012889,2]
[338724710,1726899044397,-500.0,0.00012889,2]
[338724712,1726899044406,-500.0,0.00012889,2]
[338724714,1726899044416,-625.14,0.00012889,2]
[338724716,1726899044425,-500.0,0.00012889,2]
[338724717,1726899044434,-500.0,0.00012889,2]
[338724719,1726899044443,-500.0,0.00012889,2]
[338724721,1726899044452,-11437.551,0.00012889,2]
[338724723,1726899044461,-226.9074665,0.00012899,2]
[338724725,1726899044471,-40381.12751754,0.00012943,2]
[338724727,1726899044481,-500.0,0.00012973,2]
[338724729,1726899044491,-500.0,0.00012996,2]
[338724731,1726899044500,-504.17,0.00012996,2]
[338724733,1726899044509,-500.0,0.00012996,2]
[338724735,1726899044518,-500.0,0.00012996,2]
[338724737,1726899044527,-500.0,0.00012996,2]
[338724739,1726899044537,-500.0,0.00012996,2]
[338724741,1726899044546,-500.0,0.00012996,2]
[338724743,1726899044556,-500.0,0.00012996,2]
[338724745,1726899044565,-500.0,0.00012996,2]
[338724747,1726899044575,-500.0,0.00012996,2]
[338724749,1726899044584,-500.0,0.00012996,2]
[338724751,1726899044594,-500.0,0.00012996,2]
[338724753,1726899044604,-286.08415509,0.00012996,2]
[338724755,1726899044614,-500.0,0.00012996,2]
[338724757,1726899044623,-534.85,0.00012996,2]
[338724759,1726899044633,-500.0,0.00012996,2]
[338724761,1726899044642,-500.0,0.00012996,2]
[338724763,1726899044652,-500.0,0.00012996,2]
[338724765,1726899044661,-500.0,0.00012996,2]
[338724767,1726899044671,-500.0,0.00012996,2]
[338724769,1726899044680,-500.0,0.00012996,2]
[338724771,1726899044690,-612.05,0.00012996,2]
[338724773,1726899044699,-500.0,0.00012996,2]
[338724775,1726899044709,-500.0,0.00012996,2]
[338724777,1726899044718,-500.0,0.00012996,2]
[338724779,1726899044727,-579.02,0.00012996,2]
[338724781,1726899044737,-500.0,0.00012996,2]
[338724783,1726899044746,-500.0,0.00012996,2]
[338724785,1726899044755,-500.0,0.00012996,2]
[338724787,1726899044765,-500.0,0.00012996,2]
[338724789,1726899044774,-500.0,0.00012996,2]
[338724791,1726899044783,-500.0,0.00012996,2]
[338724793,1726899044794,-500.0,0.00012996,2]
[338724795,1726899044803,-500.0,0.00012996,2]
[338724797,1726899044813,-500.0,0.00012996,2]
[338724799,1726899044823,-500.0,0.00012996,2]
[338724801,1726899044832,-568.5,0.00012996,2]
[338724803,1726899044841,-500.0,0.00012996,2]
[338724805,1726899044851,-500.0,0.00012996,2]
[338724807,1726899044860,-549.9,0.00012996,2]
[338724808,1726899044869,-587.02,0.00012996,2]
[338724810,1726899044879,-500.0,0.00012996,2]
[338724812,1726899044888,-500.0,0.00012996,2]
[338724814,1726899044897,-500.0,0.00012996,2]
[338724816,1726899044907,-500.0,0.00012996,2]
[338724818,1726899044916,-500.0,0.00012996,2]
[338724820,1726899044926,-500.0,0.00012996,2]
[338724823,1726899044935,-500.0,0.00012996,2]
[338724825,1726899044945,-500.0,0.00012996,2]
[338724826,1726899044954,-500.0,0.00012996,2]
[338724828,1726899044964,-500.0,0.00012996,2]
[338724830,1726899044974,-500.0,0.00012996,2]
[338724833,1726899044983,-500.0,0.00012996,2]
[338724835,1726899044992,-601.14,0.00012996,2]
[338724836,1726899045002,-500.0,0.00012996,2]
[338724838,1726899045011,-500.0,0.00012996,2]
[338724840,1726899045021,-500.0,0.00012996,2]
[338724842,1726899045030,-500.0,0.00012996,2]
[338724844,1726899045040,-500.0,0.00012996,2]
[338724846,1726899045049,-500.0,0.00012996,2]
[338724848,1726899045060,-500.0,0.00012996,2]
[338724851,1726899045070,-500.0,0.00012996,2]
[338724853,1726899045079,-500.0,0.00012996,2]
[338724855,1726899045088,-500.0,0.00012996,2]
[338724856,1726899045097,-500.0,0.00012996,2]
[338724858,1726899045109,-500.0,0.00012996,2]
[338724861,1726899045123,-565.68,0.00012996,2]
[338724862,1726899045133,-500.0,0.00012996,2]
[338724865,1726899045142,-579.65,0.00012996,2]
[338724867,1726899045152,-500.0,0.00012996,2]
[338724869,1726899045162,-542.28,0.00012996,2]
[338724871,1726899045171,-500.0,0.00012996,2]
[338724873,1726899045180,-500.0,0.00012996,2]
[338724875,1726899045190,-500.0,0.00012996,2]
[338724877,1726899045200,-500.0,0.00012996,2]
[338724879,1726899045210,-500.0,0.00012996,2]
[338724881,1726899045219,-500.0,0.00012996,2]
[338724883,1726899045229,-500.0,0.00012996,2]
[338724885,1726899045238,-381.74603888,0.00012996,2]
[338724887,1726899045248,-648.31,0.00012996,2]
[338724889,1726899045257,-500.0,0.00012996,2]
[338724891,1726899045266,-500.0,0.00012996,2]
[338724893,1726899045276,-537.04,0.00012996,2]
[338724895,1726899045285,-500.0,0.00012996,2]
[338724897,1726899045294,-500.0,0.00012996,2]
[338724899,1726899045303,-521.8,0.00012996,2]
[338724901,1726899045313,-500.0,0.00012996,2]
[338724903,1726899045322,-500.0,0.00012996,2]
[338724905,1726899045331,-500.0,0.00012996,2]
[338724935,1726899045589,-500.0,0.00012996,2]
[338724938,1726899045626,-500.0,0.00012996,2]
[338724940,1726899045637,-500.0,0.00012996,2]
[338724942,1726899045648,-500.0,0.00012996,2]
[338724944,1726899045660,-500.0,0.00012996,2]
[338724947,1726899045671,-500.0,0.00012996,2]
[338724949,1726899045682,-500.0,0.00012996,2]
[338724951,1726899045691,-220.05,0.00012996,2]
[338724953,1726899045702,-500.0,0.00012996,2]
[338724955,1726899045711,-538.93,0.00012996,2]
[338724957,1726899045720,-515.78,0.00012996,2]
[338724959,1726899045729,-500.0,0.00012996,2]
[338724961,1726899045739,-183.2786257,0.00012996,2]
[338724963,1726899045749,-250.47,0.00012996,2]
[338724965,1726899045759,-500.0,0.00012996,2]
[338724967,1726899045770,-593.71,0.00012996,2]
[338724970,1726899045782,-500.0,0.00012996,2]
[338724972,1726899045793,-500.0,0.00012996,2]
[338724974,1726899045802,-500.0,0.00012996,2]
[338724976,1726899045812,-500.0,0.00012996,2]
[338724978,1726899045821,-314.72,0.00012996,2]
[338724980,1726899045830,-500.0,0.00012996,2]
[338724981,1726899045840,-500.0,0.00012996,2]
[338724983,1726899045850,-500.0,0.00012996,2]
[338724985,1726899045859,-500.0,0.00012996,2]
[338724987,1726899045869,-500.0,0.00012996,2]
[338724989,1726899045878,-500.0,0.00012996,2]
[338724991,1726899045888,-500.0,0.00012996,2]
[338724993,1726899045898,-500.0,0.00012996,2]
[338724996,1726899045907,-299.95321804,0.00012996,2]
[338724998,1726899045917,-500.0,0.00012996,2]
[338725000,1726899045927,-500.0,0.00012996,2]
[338725002,1726899045936,-595.5,0.00012996,2]
[338725004,1726899045946,-500.0,0.00012996,2]
[338725006,1726899045956,-500.0,0.00012996,2]
[338725008,1726899045965,-500.0,0.00012996,2]
[338725011,1726899045975,-500.0,0.00012996,2]
[338725013,1726899045985,-500.0,0.00012996,2]
[338725015,1726899045994,-500.0,0.00012996,2]
[338725017,1726899046004,-500.0,0.00012996,2]
[338725019,1726899046013,-500.0,0.00012996,2]
[338725021,1726899046023,-500.0,0.00012996,2]
[338725023,1726899046032,-500.0,0.00012996,2]
[338725025,1726899046042,-500.0,0.00012996,2]
[338725027,1726899046052,-500.0,0.00012996,2]
[338725029,1726899046061,-500.0,0.00012996,2]
[338725031,1726899046071,-500.0,0.00012996,2]
[338725033,1726899046080,-500.0,0.00012996,2]
[338725035,1726899046090,-500.0,0.00012996,2]
[338725037,1726899046099,-500.0,0.00012996,2]
[338725039,1726899046114,-500.0,0.00012996,2]
[338725041,1726899046123,-500.0,0.00012996,2]
[338725043,1726899046133,-1000.0,0.00012996,2]
[338725045,1726899046143,-236.59,0.00012996,2]
[338725047,1726899046153,-500.0,0.00012996,2]
[338725049,1726899046163,-500.0,0.00012996,2]
[338725051,1726899046173,-500.0,0.00012996,2]
[338725053,1726899046183,-500.0,0.00012996,2]
[338725055,1726899046193,-323.73,0.00012996,2]
[338725057,1726899046203,-500.0,0.00012996,2]
[338725059,1726899046213,-500.0,0.00012996,2]
[338725061,1726899046223,-500.0,0.00012996,2]
[338725062,1726899046232,-500.0,0.00012996,2]
[338725063,1726899046242,-576.00990192,0.00012996,2]
[338725064,1726899046252,-500.0,0.00012996,2]
[338725065,1726899046261,-500.0,0.00012996,2]
[338725067,1726899046271,-500.0,0.00012996,2]
[338725069,1726899046281,-500.0,0.00012996,2]
[338725071,1726899046290,-500.0,0.00012996,2]
[338725073,1726899046300,-500.0,0.00012996,2]
[338725075,1726899046309,-500.0,0.00012996,2]
[338725077,1726899046319,-500.0,0.00012996,2]
[338725079,1726899046328,-500.0,0.00012996,2]
[338725081,1726899046338,-500.0,0.00012996,2]
[338725083,1726899046348,-500.0,0.00012996,2]
[338725085,1726899046358,-500.0,0.00012996,2]
[338725087,1726899046368,-500.0,0.00012996,2]
[338725089,1726899046378,-500.0,0.00012996,2]
[338725091,1726899046387,-500.0,0.00012996,2]
[338725093,1726899046397,-500.0,0.00012996,2]
[338725095,1726899046407,-500.0,0.00012996,2]
[338725097,1726899046417,-500.0,0.00012996,2]
[338725099,1726899046426,-500.0,0.00012996,2]
[338725100,1726899046435,-500.0,0.00012996,2]
[338725102,1726899046445,-522.96,0.00012996,2]
[338725104,1726899046455,-500.0,0.00012996,2]
[338725106,1726899046464,-500.0,0.00012996,2]
[338725108,1726899046473,-500.0,0.00012996,2]
[338725110,1726899046484,-500.0,0.00012996,2]
[338725112,1726899046494,-500.0,0.00012996,2]
[338725114,1726899046503,-500.0,0.00012996,2]
[338725116,1726899046513,-500.0,0.00012996,2]
[338725118,1726899046523,-583.51,0.00012996,2]
[338725120,1726899046532,-398.17,0.00012996,2]
[338725122,1726899046543,-500.0,0.00012996,2]
[338725124,1726899046552,-500.0,0.00012996,2]
[338725126,1726899046562,-500.0,0.00012996,2]
[338725128,1726899046572,-500.0,0.00012996,2]
[338725130,1726899046581,-500.0,0.00012996,2]
[338725132,1726899046591,-231.11690135,0.00012996,2]
[338725134,1726899046601,-500.0,0.00012996,2]
[338725136,1726899046611,-500.0,0.00012996,2]
[338725138,1726899046622,-500.0,0.00012996,2]
[338725140,1726899046631,-500.0,0.00012996,2]
[338725142,1726899046640,-606.38,0.00012996,2]
[338725145,1726899046650,-500.0,0.00012996,2]
[338725147,1726899046659,-500.0,0.00012996,2]
[338725148,1726899046669,-500.0,0.00012996,2]
[338725150,1726899046678,-500.0,0.00012996,2]
[338725153,1726899046688,-500.0,0.00012996,2]
[338725155,1726899046698,-500.0,0.00012996,2]
[338725157,1726899046707,-500.0,0.00012996,2]
[338725159,1726899046717,-500.0,0.00012996,2]
[338725161,1726899046727,-500.0,0.00012996,2]
[338725163,1726899046738,-500.0,0.00012996,2]
[338725165,1726899046747,-500.0,0.00012996,2]
[338725167,1726899046757,-500.0,0.00012996,2]
[338725169,1726899046766,-540.46,0.00012996,2]
[338725171,1726899046776,-500.0,0.00012996,2]
[338725173,1726899046786,-500.0,0.00012996,2]
[338725175,1726899046795,-500.0,0.00012996,2]
[338725177,1726899046805,-500.0,0.00012996,2]
[338725179,1726899046815,-500.0,0.00012996,2]
[338725181,1726899046824,-500.0,0.00012996,2]
[338725183,1726899046834,-548.02,0.00012996,2]
[338725185,1726899046843,-500.0,0.00012996,2]
[338725187,1726899046854,-500.0,0.00012996,2]
[338725189,1726899046863,-2528.29,0.00012996,2]
[338725191,1726899046875,-281.86313371,0.00012996,2]
[338725193,1726899046885,-500.0,0.00012997,2]
[338725195,1726899046895,-309.38,0.00012997,2]
[338725197,1726899046906,-500.0,0.00012997,2]
[338725200,1726899046916,-275.62,0.00012997,2]
[338725202,1726899046926,-489.02,0.00012997,2]
[338725204,1726899046936,-500.0,0.00012997,2]
[338725206,1726899046946,-500.0,0.00012997,2]
[338725208,1726899046956,-500.0,0.00012997,2]
[338725210,1726899046966,-590.99,0.00012997,2]
[338725212,1726899046975,-500.0,0.00012997,2]
[338725214,1726899046985,-500.0,0.00012997,2]
[338725216,1726899046995,-500.0,0.00012997,2]
[338725218,1726899047005,-500.0,0.00012997,2]
[338725220,1726899047015,-555.05,0.00012997,2]
[338725222,1726899047024,-500.0,0.00012997,2]
[338725224,1726899047034,-500.0,0.00012997,2]
[338725226,1726899047043,-500.0,0.00012997,2]
[338725228,1726899047052,-589.54,0.00012997,2]
[338725230,1726899047062,-500.0,0.00012997,2]
[338725232,1726899047072,-500.0,0.00012997,2]
[338725234,1726899047081,-279.45,0.00012997,2]
[338725236,1726899047091,-500.0,0.00012997,2]
[338725238,1726899047101,-576.66,0.00012997,2]
[338725240,1726899047121,-500.0,0.00012997,2]
[338725242,1726899047131,-500.0,0.00012997,2]
[338725244,1726899047141,-363.35,0.00012997,2]
[338725246,1726899047151,-500.0,0.00012997,2]
[338725248,1726899047161,-500.0,0.00012997,2]
[338725251,1726899047172,-332.11,0.00012997,2]
[338725253,1726899047181,-165.19,0.00012997,2]
[338725255,1726899047191,-500.0,0.00012997,2]
[338725257,1726899047201,-455.77,0.00012997,2]
[338725259,1726899047211,-277.35,0.00012997,2]
[338725261,1726899047220,-500.0,0.00012997,2]
[338725262,1726899047229,-500.0,0.00012997,2]
[338725265,1726899047239,-500.0,0.00012997,2]
[338725267,1726899047248,-215.06,0.00012997,2]
[338725269,1726899047258,-500.0,0.00012997,2]
[338725271,1726899047268,-500.0,0.00012997,2]
[338725273,1726899047278,-500.0,0.00012997,2]
[338725275,1726899047288,-500.0,0.00012997,2]
[338725277,1726899047298,-500.0,0.00012997,2]
[338725279,1726899047307,-500.0,0.00012997,2]
[338725281,1726899047317,-277.89,0.00012997,2]
[338725283,1726899047326,-500.0,0.00012997,2]
[338725285,1726899047335,-500.0,0.00012997,2]
[338725287,1726899047344,-500.0,0.00012997,2]
[338725289,1726899047358,-500.0,0.00012997,2]
[338725291,1726899047368,-500.0,0.00012997,2]
[338725293,1726899047377,-500.0,0.00012997,2]
[338725295,1726899047387,-314.33,0.00012997,2]
[338725297,1726899047396,-523.36,0.00012997,2]
[338725299,1726899047405,-264.45,0.00012997,2]
[338725301,1726899047414,-177.04,0.00012997,2]
[338725303,1726899047424,-500.0,0.00012997,2]
[338725305,1726899047433,-500.0,0.00012997,2]
[338725307,1726899047442,-500.0,0.00012997,2]
[338725309,1726899047452,-500.0,0.00012997,2]
[338725311,1726899047461,-500.0,0.00012997,2]
[338725313,1726899047470,-500.0,0.00012997,2]
[338725315,1726899047479,-500.0,0.00012997,2]
[338725317,1726899047488,-500.0,0.00012997,2]
[338725319,1726899047498,-323.53,0.00012997,2]
[338725321,1726899047507,-612.87,0.00012997,2]
[338725323,1726899047516,-500.0,0.00012997,2]
[338725325,1726899047526,-500.0,0.00012997,2]
[338725327,1726899047535,-500.0,0.00012997,2]
[338725329,1726899047545,-500.0,0.00012997,2]
[338725331,1726899047555,-193.07,0.00012997,2]
[338725333,1726899047565,-500.0,0.00012997,2]
[338725335,1726899047574,-500.0,0.00012997,2]
[338725337,1726899047584,-500.0,0.00012997,2]
[338725339,1726899047594,-500.0,0.00012997,2]
[338725341,1726899047605,-169.64,0.00012997,2]
[338725343,1726899047614,-501.64,0.00012997,2]
[338725345,1726899047623,-500.0,0.00012997,2]
[338725347,1726899047633,-420.07,0.00012997,2]
[338725349,1726899047642,-500.0,0.00012997,2]
[338725351,1726899047652,-230.67,0.00012997,2]
[338725353,1726899047661,-500.0,0.00012997,2]
[338725355,1726899047671,-500.0,0.00012997,2]
[338725357,1726899047680,-500.0,0.00012997,2]
[338725359,1726899047690,-500.0,0.00012997,2]
[338725361,1726899047701,-500.0,0.00012997,2]
[338725363,1726899047710,-500.0,0.00012997,2]
[338725365,1726899047720,-500.0,0.00012997,2]
[338725367,1726899047729,-205.56,0.00012997,2]
[338725369,1726899047739,-500.0,0.00012997,2]
[338725371,1726899047749,-500.0,0.00012997,2]
[338725373,1726899047759,-500.0,0.00012997,2]
[338725375,1726899047769,-531.89,0.00012997,2]
[338725377,1726899047779,-500.0,0.00012997,2]
[338725379,1726899047789,-619.44,0.00012997,2]
[338725381,1726899047798,-500.0,0.00012997,2]
[338725383,1726899047807,-500.0,0.00012997,2]
[338725385,1726899047816,-500.0,0.00012997,2]
[338725387,1726899047826,-648.94,0.00012997,2]
[338725389,1726899047836,-500.0,0.00012997,2]
[338725391,1726899047845,-508.28,0.00012997,2]
[338725394,1726899047857,-500.76,0.00012997,2]
[338725396,1726899047866,-440.61,0.00012997,2]
[338725398,1726899047876,-269.04,0.00012997,2]
[338725400,1726899047886,-500.0,0.00012997,2]
[338725402,1726899047895,-491.41,0.00012997,2]
[338725404,1726899047904,-500.0,0.00012997,2]
[338725406,1726899047913,-302.28,0.00012997,2]
[338725408,1726899047923,-566.93,0.00012997,2]
[338725409,1726899047932,-500.0,0.00012997,2]
[338725411,1726899047942,-500.0,0.00012997,2]
[338725413,1726899047951,-404.2,0.00012997,2]
[338725415,1726899047960,-500.0,0.00012997,2]
[338725417,1726899047969,-158.0,0.00012997,2]
[338725431,1726899048101,-607.73,0.00012997,2]
[338725433,1726899048113,-337.17,0.00012997,2]
[338725435,1726899048122,-573.65,0.00012997,2]
[338725436,1726899048132,-500.0,0.00012997,2]
[338725438,1726899048142,-186.99,0.00012997,2]
[338725440,1726899048151,-500.0,0.00012997,2]
[338725442,1726899048160,-500.0,0.00012997,2]
[338725444,1726899048169,-532.3,0.00012997,2]
[338725446,1726899048179,-500.0,0.00012997,2]
[338725448,1726899048188,-183.08,0.00012997,2]
[338725450,1726899048198,-514.26,0.00012997,2]
[338725452,1726899048207,-299.34,0.00012997,2]
[338725454,1726899048217,-500.0,0.00012997,2]
[338725456,1726899048226,-337.4,0.00012997,2]
[338725458,1726899048235,-351.17,0.00012997,2]
[338725460,1726899048244,-500.0,0.00012997,2]
[338725462,1726899048255,-500.0,0.00012997,2]
[338725463,1726899048264,-396.11,0.00012997,2]
[338725465,1726899048274,-500.0,0.00012997,2]
[338725467,1726899048283,-294.02,0.00012997,2]
[338725469,1726899048292,-500.0,0.00012997,2]
[338725471,1726899048302,-200.68,0.00012997,2]
[338725473,1726899048311,-151.15,0.00012997,2]
[338725475,1726899048320,-157.47,0.00012997,2]
[338725477,1726899048329,-282.65,0.00012997,2]
[338725479,1726899048338,-500.0,0.00012997,2]
[338725481,1726899048348,-172.72,0.00012997,2]
[338725483,1726899048358,-476.02,0.00012997,2]
[338725485,1726899048367,-500.0,0.00012997,2]
[338725487,1726899048376,-500.0,0.00012997,2]
[338725489,1726899048385,-413.9,0.00012997,2]
[338725491,1726899048394,-501.07,0.00012997,2]
[338725493,1726899048404,-500.0,0.00012997,2]
[338725494,1726899048413,-291.68,0.00012997,2]
[338725496,1726899048422,-341.65,0.00012997,2]
[338725498,1726899048432,-416.33,0.00012997,2]
[338725500,1726899048441,-364.97,0.00012997,2]
[338725502,1726899048450,-348.59,0.00012997,2]
[338725504,1726899048459,-248.03,0.00012997,2]
[338725506,1726899048469,-500.0,0.00012997,2]
[338725508,1726899048478,-353.92,0.00012997,2]
[338725510,1726899048487,-500.0,0.00012997,2]
[338725512,1726899048496,-500.0,0.00012997,2]
[338725514,1726899048506,-224.01,0.00012997,2]
[338725515,1726899048514,-416.59,0.00012997,2]
[338725517,1726899048523,-502.34,0.00012997,2]
[338725519,1726899048532,-283.92,0.00012997,2]
[338725521,1726899048541,-396.4,0.00012997,2]
[338725523,1726899048550,-397.37,0.00012997,2]
[338725525,1726899048559,-356.99,0.00012997,2]
[338725527,1726899048568,-397.8,0.00012997,2]
[338725529,1726899048577,-588.39,0.00012997,2]
[338725531,1726899048586,-597.49,0.00012997,2]
[338725533,1726899048595,-487.67,0.00012997,2]
[338725535,1726899048605,-804.62,0.00012997,2]
[338725537,1726899048614,-475.49,0.00012997,2]
[338725539,1726899048623,-202.58,0.00012997,2]
[338725541,1726899048632,-500.0,0.00012997,2]
[338725543,1726899048641,-500.0,0.00012997,2]
[338725544,1726899048650,-500.0,0.00012997,2]
[338725546,1726899048660,-180.97,0.00012997,2]
[338725548,1726899048669,-420.39,0.00012997,2]
[338725550,1726899048679,-500.0,0.00012997,2]
[338725552,1726899048688,-500.0,0.00012997,2]
[338725555,1726899048700,-500.0,0.00012997,2]
[338725557,1726899048709,-500.0,0.00012997,2]
[338725559,1726899048719,-521.19,0.00012997,2]
[338725560,1726899048728,-500.0,0.00012997,2]
[338725562,1726899048737,-291.54,0.00012997,2]
[338725564,1726899048747,-574.53,0.00012997,2]
[338725566,1726899048756,-500.0,0.00012997,2]
[338725568,1726899048766,-514.94,0.00012997,2]
[338725570,1726899048775,-500.0,0.00012997,2]
[338725572,1726899048784,-150.0,0.00012997,2]
[338725574,1726899048793,-172.64,0.00012997,2]
[338725576,1726899048802,-191.54,0.00012997,2]
[338725578,1726899048812,-500.0,0.00012997,2]
[338725580,1726899048821,-230.21,0.00012997,2]
[338725582,1726899048830,-345.99,0.00012997,2]
[338725584,1726899048839,-500.0,0.00012997,2]
[338725586,1726899048849,-570.02,0.00012997,2]
[338725588,1726899048858,-500.0,0.00012997,2]
[338725590,1726899048868,-263.58,0.00012997,2]
[338725592,1726899048878,-269.54,0.00012997,2]
[338725594,1726899048887,-500.0,0.00012997,2]
[338725596,1726899048896,-413.37,0.00012997,2]
[338725598,1726899048905,-500.0,0.00012998,2]
[338725600,1726899048915,-500.0,0.00012998,2]
[338725602,1726899048925,-152.22,0.00012998,2]
[338725604,1726899048934,-607.63,0.00012998,2]
[338725605,1726899048945,-500.0,0.00012998,2]
[338725607,1726899048954,-172.74,0.00012998,2]
[338725609,1726899048964,-604.4,0.00012998,2]
[338725611,1726899048973,-314.13,0.00012998,2]
[338725613,1726899048982,-159.55,0.00012998,2]
[338725615,1726899048991,-408.17,0.00012998,2]
[338725617,1726899049001,-500.0,0.00012998,2]
[338725619,1726899049010,-317.27,0.00012998,2]
[338725621,1726899049019,-153.9,0.00012998,2]
[338725623,1726899049029,-485.03,0.00012998,2]
[338725625,1726899049038,-500.0,0.00012998,2]
[338725627,1726899049047,-581.26,0.00012998,2]
[338725629,1726899049056,-500.0,0.00012998,2]
[338725631,1726899049065,-500.0,0.00012998,2]
[338725633,1726899049075,-500.0,0.00012998,2]
[338725635,1726899049084,-345.84,0.00012998,2]
[338725637,1726899049094,-460.96,0.00012998,2]
[338725639,1726899049103,-500.0,0.00012998,2]
[338725641,1726899049115,-590.85,0.00012998,2]
[338725643,1726899049125,-500.0,0.00012998,2]
[338725645,1726899049134,-301.46,0.00012998,2]
[338725647,1726899049144,-500.0,0.00012998,2]
[338725649,1726899049153,-500.0,0.00012998,2]
[338725651,1726899049162,-500.0,0.00012998,2]
[338725653,1726899049173,-500.0,0.00012998,2]
[338725655,1726899049183,-205.94,0.00012998,2]
[338725657,1726899049193,-500.0,0.00012998,2]
[338725659,1726899049202,-500.0,0.00012998,2]
[338725661,1726899049212,-500.0,0.00012998,2]
[338725663,1726899049221,-500.0,0.00012998,2]
[338725665,1726899049231,-500.0,0.00012998,2]
[338725667,1726899049240,-500.0,0.00012998,2]
[338725668,1726899049249,-500.0,0.00012998,2]
[338725670,1726899049259,-500.0,0.00012998,2]
[338725672,1726899049268,-500.0,0.00012998,2]
[338725674,1726899049278,-228.49,0.00012998,2]
[338725676,1726899049287,-500.0,0.00012998,2]
[338725678,1726899049297,-500.0,0.00012998,2]
[338725680,1726899049306,-500.0,0.00012998,2]
[338725682,1726899049315,-500.0,0.00012998,2]
[338725684,1726899049325,-500.0,0.00012998,2]
[338725686,1726899049334,-500.0,0.00012998,2]
[338725688,1726899049343,-500.0,0.00012998,2]
[338725690,1726899049352,-500.0,0.00012998,2]
[338725692,1726899049362,-510.02,0.00012998,2]
[338725694,1726899049371,-500.0,0.00012998,2]
[338725696,1726899049381,-500.0,0.00012998,2]
[338725698,1726899049389,-500.0,0.00012998,2]
[338725700,1726899049399,-382.92,0.00012998,2]
[338725701,1726899049408,-509.5,0.00012998,2]
[338725704,1726899049419,-237.2,0.00012998,2]
[338725705,1726899049428,-500.0,0.00012998,2]
[338725707,1726899049438,-500.0,0.00012998,2]
[338725709,1726899049447,-515.66,0.00012998,2]
[338725711,1726899049457,-500.0,0.00012998,2]
[338725713,1726899049466,-500.0,0.00012998,2]
[338725715,1726899049475,-500.0,0.00012998,2]
[338725717,1726899049484,-500.0,0.00012998,2]
[338725719,1726899049494,-500.0,0.00012998,2]
[338725721,1726899049503,-500.0,0.00012998,2]
[338725723,1726899049513,-500.0,0.00012998,2]
[338725725,1726899049522,-500.0,0.00012998,2]
[338725727,1726899049531,-500.0,0.00012998,2]
[338725729,1726899049540,-500.0,0.00012998,2]
[338725730,1726899049549,-368.47,0.00012998,2]
[338725732,1726899049558,-500.0,0.00012998,2]
[338725734,1726899049567,-500.0,0.00012998,2]
[338725736,1726899049576,-500.0,0.00012998,2]
[338725738,1726899049585,-190.27,0.00012998,2]